lending/lending_fUSD_20241229
["ID","MTS","AMOUNT","RATE_DAILY","PERIOD"]
[346987538,1735454314323,-500.0,0.00012977,2]
[346987539,1735454314346,-322.336479,0.00012977,2]
[346987540,1735454314371,-322.336479,0.00012977,2]
[346987541,1735454314394,-322.336479,0.00012977,2]
[346987542,1735454314417,-151.0,0.00012977,2]
[346987543,1735454314440,-151.0,0.00012977,2]
[346987544,1735454314463,-151.0,0.00012977,2]
[346987545,1735454314486,-322.336479,0.00012977,2]
[346987546,1735454314509,-322.336479,0.00012977,2]
[346987547,1735454314531,-322.336479,0.00012977,2]
[346987548,1735454314553,-229.442613,0.00012977,2]
[346987549,1735454314576,-736.88,0.00012977,2]
[346987550,1735454314600,-500.0,0.00012977,2]
[346987551,1735454314625,-513.37607646,0.00012977,2]
[346987552,1735454314648,-500.0,0.00012977,2]
[346987553,1735454314670,-842.8,0.00012977,2]
[346987554,1735454314692,-807.68,0.00012977,2]
[346987555,1735454314716,-367.55,0.00012978,2]
[346987556,1735454314738,-500.0,0.00012978,2]
[346987557,1735454314762,-500.0,0.00012978,2]
[346987558,1735454314784,-500.0,0.00012978,2]
[346987559,1735454314806,-500.0,0.00012978,2]
[346987560,1735454314828,-500.0,0.00012978,2]
[346987561,1735454314851,-596.58,0.00012978,2]
[346987562,1735454314873,-500.0,0.00012978,2]
[346987563,1735454314895,-319.05000867,0.00012978,2]
[346987564,1735454314919,-500.0,0.00012978,2]
[346987565,1735454314942,-500.0,0.00012978,2]
[346987566,1735454314964,-500.0,0.00012978,2]
[346987567,1735454314986,-500.0,0.00012978,2]
[346987568,1735454315009,-500.0,0.00012978,2]
[346987569,1735454315031,-500.0,0.00012978,2]
[346987570,1735454315053,-500.0,0.00012978,2]
[346987571,1735454315078,-500.0,0.00012978,2]
[346987572,1735454315102,-3189.74,0.00012978,2]
[346987573,1735454315127,-500.0,0.00012978,2]
[346987574,1735454315150,-500.0,0.00012978,2]
[346987575,1735454315175,-500.0,0.00012978,2]
[346987576,1735454315200,-500.0,0.00012978,2]
[346987577,1735454315223,-1080.3,0.00012978,2]
[346987578,1735454315247,-500.0,0.00012978,2]
[346987579,1735454315271,-500.0,0.00012978,2]
[346987580,1735454315292,-500.0,0.00012978,2]
[346987581,1735454315318,-500.0,0.00012978,2]
[346987582,1735454315341,-500.0,0.00012978,2]
[346987583,1735454315364,-1000.0,0.00012978,2]
[346987584,1735454315386,-500.0,0.00012978,2]
[346987585,1735454315408,-322.336479,0.00012978,2]
[346987586,1735454315430,-151.0,0.00012978,2]
[346987587,1735454315453,-322.336473,0.00012978,2]
[346987588,1735454315476,-500.0,0.00012978,2]
[346987589,1735454315500,-500.0,0.00012978,2]
[346987590,1735454315524,-500.0,0.00012978,2]
[346987591,1735454315546,-9600.0,0.00012979,2]
[346987592,1735454315569,-1171.0,0.00012979,2]
[346987593,1735454315591,-244.635,0.00012991,2]
[346987594,1735454315616,-3890.0,0.00012991,2]
[346987595,1735454315640,-626.78,0.00012998,2]
[346987596,1735454315662,-503.39148865,0.00012998,2]
[346987597,1735454315686,-500.0,0.00012998,2]
[346987598,1735454315710,-500.0,0.00012998,2]
[346987599,1735454315732,-1045.86359087,0.00012999,3]
[346987600,1735454315755,-1045.86359087,0.00012999,3]
[346987601,1735454315777,-1045.86359087,0.00012999,3]
[346987602,1735454315799,-3809.41016855,0.00012999,2]
[346987603,1735454315821,-670.32,0.00012999,2]
[346987604,1735454315843,-5000.0,0.00012999,2]
[346987605,1735454315867,-5000.0,0.00012999,2]
[346987606,1735454315890,-5000.0,0.00012999,2]
[346987607,1735454315912,-5000.0,0.00012999,2]
[346987608,1735454315934,-5000.0,0.00012999,2]
[346987609,1735454315955,-5000.0,0.00012999,2]
[346987610,1735454315977,-2958.23394984,0.00012999,2]
[346987611,1735454315999,-626.78,0.00012999,2]
[346987612,1735454316025,-626.78,0.00012999,2]
[346987613,1735454316047,-626.78,0.00012999,2]
[346987614,1735454316069,-626.78,0.00012999,2]
[346987615,1735454316091,-626.78,0.00012999,2]
[346987616,1735454316117,-626.78,0.00012999,2]
[346987617,1735454316139,-626.78,0.00012999,2]
[346987618,1735454316161,-626.78,0.00012999,2]
[346987619,1735454316182,-626.78,0.00012999,2]
[346987620,1735454316204,-626.78,0.00012999,2]
[346987621,1735454316225,-626.78,0.00012999,2]
[346987622,1735454316248,-626.78,0.00012999,2]
[346987623,1735454316269,-626.78,0.00012999,2]
[346987624,1735454316293,-626.78,0.00012999,2]
[346987625,1735454316314,-626.78,0.00012999,2]
[346987626,1735454316335,-626.78,0.00012999,2]
[346987627,1735454316358,-626.78,0.00012999,2]
[346987628,1735454316380,-626.78,0.00012999,2]
[346987629,1735454316402,-626.78,0.00012999,2]
[346987630,1735454316423,-626.78,0.00012999,2]
[346987631,1735454316591,-626.78,0.00012999,2]
[346987632,1735454316633,-627.00474268,0.00012999,2]
[346987633,1735454316657,-426711.73434773,0.00013,2]
[346987634,1735454316681,-8621528.37912143,0.00013,4]
[346987635,1735454316704,-382478.22254672,0.00013,2]
[346987636,1735454316728,-574156.45055194,0.00013,2]
[346987637,1735454316752,-5868690.89040015,0.00013,2]
[346987638,1735454316775,-291431.32532959,0.00013,2]
[346987639,1735454578391,-517.02,0.00010201,2]
[346987698,1735455032491,-1500.0,0.00011442,2]
[346987699,1735455032500,-385.09,0.00011473,2]
[346987700,1735455032510,-534.17,0.00011501,2]
[346987701,1735455032519,-181.16092209,0.00011801,2]
[346987702,1735455032529,-166.66666667,0.00011867,2]
[346987703,1735455032538,-2751.0,0.00011901,2]
[346987704,1735455032547,-250.0,0.00011901,2]
[346987705,1735455032557,-159.05,0.00011957,2]
[346987706,1735455032567,-159.05,0.00011962,2]
[346987707,1735455032576,-159.05,0.00011966,2]
[346987708,1735455032585,-159.05,0.0001197,2]
[346987709,1735455032595,-277.61,0.00011974,2]
[346987710,1735455032604,-159.05,0.00011975,2]
[346987711,1735455032614,-300.0,0.00011978,2]
[346987712,1735455032623,-159.05,0.00011979,2]
[346987713,1735455032632,-159.05,0.00011983,2]
[346987714,1735455032641,-159.05,0.00011987,2]
[346987715,1735455032650,-159.05,0.00011992,2]
[346987716,1735455032660,-200.0,0.00011994,2]
[346987717,1735455032669,-159.05,0.00011996,2]
[346987718,1735455032678,-159.05,0.00012,2]
[346987719,1735455032687,-159.05,0.00012004,2]
[346987720,1735455032697,-159.05,0.00012009,2]
[346987721,1735455032706,-159.05,0.00012013,2]
[346987722,1735455032716,-159.05,0.00012017,2]
[346987723,1735455032728,-1000.0,0.00012059,2]
[346987724,1735455032738,-2000.0,0.00012067,2]
[346987725,1735455032747,-750.17897989,0.00012342,2]
[346987726,1735455032757,-353.742,0.0001235,2]
[346987727,1735455032766,-150.0,0.00012402,2]
[346987728,1735455032775,-167.19,0.00012483,2]
[346987729,1735455032784,-210.61948922,0.00012668,2]
[346987730,1735455032794,-150.0,0.00012817,2]
[346987731,1735455032803,-150.0,0.00012849,2]
[346987732,1735455032812,-181.16092209,0.00012874,2]
[346987733,1735455032822,-1447.6891,0.00012875,2]
[346987734,1735455032831,-743.8883,0.00012875,2]
[346987735,1735455032841,-6297.3338159,0.00012875,2]
[346987736,1735455032852,-1000.0,0.00012891,2]
[346987737,1735455032861,-563.27411597,0.000129,2]
[346987738,1735455032872,-385.09,0.00012907,2]
[346987739,1735455032881,-150.0,0.00012954,2]
[346987740,1735455032891,-500.0,0.00012973,2]
[346987741,1735455032901,-500.0,0.00012974,2]
[346987742,1735455032910,-500.0,0.00012974,2]
[346987743,1735455032920,-2871.7,0.00012974,2]
[346987744,1735455032929,-1259.71,0.00012974,2]
[346987745,1735455032938,-1399.61,0.00012974,2]
[346987746,1735455032950,-2438.2,0.00012974,2]
[346987747,1735455032961,-1330.26,0.00012974,2]
[346987748,1735455032971,-1074.37,0.00012974,2]
[346987749,1735455032981,-155.399952,0.00012974,2]
[346987750,1735455032991,-156.141842,0.00012974,2]
[346987751,1735455033000,-829.826948,0.00012974,2]
[346987752,1735455033009,-608.863283,0.00012974,2]
[346987753,1735455033019,-8155.25,0.00012974,2]
[346987754,1735455033029,-961.5,0.00012974,2]
[346987755,1735455033038,-1281.1,0.00012974,2]
[346987756,1735455033048,-1427.99,0.00012974,2]
[346987757,1735455033058,-500.0,0.00012974,2]
[346987758,1735455033067,-500.0,0.00012974,2]
[346987759,1735455033076,-4017.61,0.00012974,2]
[346987760,1735455033086,-921.87,0.00012974,2]
[346987761,1735455033095,-1076.11,0.00012974,2]
[346987762,1735455033105,-507.28,0.00012974,2]
[346987763,1735455033115,-907.7,0.00012974,2]
[346987764,1735455033126,-508.2157274,0.00012974,2]
[346987765,1735455033135,-500.0,0.00012975,2]
[346987766,1735455033145,-338.36000428,0.00012975,2]
[346987767,1735455033154,-500.0,0.00012975,2]
[346987768,1735455033163,-504.32605261,0.00012975,2]
[346987769,1735455033173,-175.525596,0.00012975,2]
[346987770,1735455033182,-541.53382008,0.00012975,2]
[346987771,1735455033192,-500.0,0.00012975,2]
[346987772,1735455033201,-161.78015636,0.00012975,2]
[346987773,1735455033210,-209.76852175,0.00012975,2]
[346987774,1735455033220,-506.91639659,0.00012975,2]
[346987775,1735455033229,-500.0,0.00012975,2]
[346987776,1735455033239,-504.01229091,0.00012975,2]
[346987777,1735455033248,-500.0,0.00012975,2]
[346987778,1735455033258,-500.0,0.00012975,2]
[346987779,1735455033267,-189.57470569,0.00012975,2]
[346987780,1735455033276,-500.0,0.00012975,2]
[346987781,1735455033286,-505.29554043,0.00012975,2]
[346987782,1735455033295,-500.0,0.00012975,2]
[346987783,1735455033305,-500.0,0.00012975,2]
[346987784,1735455033314,-517.41974212,0.00012975,2]
[346987785,1735455033324,-500.0,0.00012975,2]
[346987786,1735455033334,-500.0,0.00012975,2]
[346987787,1735455033343,-500.0,0.00012975,2]
[346987788,1735455033353,-500.0,0.00012975,2]
[346987789,1735455033362,-500.0,0.00012975,2]
[346987790,1735455033371,-583.77404571,0.00012975,2]
[346987791,1735455033381,-500.0,0.00012975,2]
[346987792,1735455033391,-503.93668529,0.00012975,2]
[346987793,1735455033400,-502.54218197,0.00012975,2]
[346987794,1735455033410,-503.41079503,0.00012975,2]
[346987795,1735455033419,-500.0,0.00012975,2]
[346987796,1735455033428,-500.0,0.00012975,2]
[346987797,1735455033438,-500.0,0.00012975,2]
[346987798,1735455033447,-500.0,0.00012975,2]
[346987799,1735455033457,-500.0,0.00012975,2]
[346987800,1735455033466,-500.0,0.00012975,2]
[346987801,1735455033477,-502.75231293,0.00012975,2]
[346987802,1735455033487,-500.0,0.00012975,2]
[346987803,1735455033496,-501.78133041,0.00012975,2]
[346987804,1735455033505,-500.0,0.00012975,2]
[346987805,1735455033515,-317.17568366,0.00012975,2]
[346987806,1735455033524,-504.02788788,0.00012975,2]
[346987807,1735455033534,-512.20592679,0.00012975,2]
[346987808,1735455033544,-500.0,0.00012975,2]
[346987809,1735455033554,-500.0,0.00012975,2]
[346987810,1735455033563,-500.0,0.00012975,2]
[346987811,1735455033573,-500.0,0.00012975,2]
[346987812,1735455033583,-474.14274059,0.00012975,2]
[346987813,1735455033592,-500.0,0.00012975,2]
[346987814,1735455033602,-500.0,0.00012975,2]
[346987815,1735455033611,-500.0,0.00012975,2]
[346987816,1735455033621,-500.0,0.00012975,2]
[346987817,1735455033630,-500.0,0.00012975,2]
[346987818,1735455033640,-1157.47,0.00012975,7]
[346987819,1735455033650,-500.0,0.00012975,2]
[346987820,1735455033661,-500.0,0.00012975,2]
[346987821,1735455033670,-500.0,0.00012975,2]
[346987822,1735455033680,-500.0,0.00012975,2]
[346987823,1735455033690,-248.2428402,0.00012975,2]
[346987824,1735455033700,-500.0,0.00012975,2]
[346987825,1735455033709,-500.0,0.00012975,2]
[346987826,1735455033719,-500.0,0.00012975,2]
[346987827,1735455033729,-500.0,0.00012975,2]
[346987828,1735455033738,-500.0,0.00012975,2]
[346987829,1735455033748,-235.66685932,0.00012975,2]
[346987830,1735455033758,-500.0,0.00012975,2]
[346987831,1735455033768,-500.0,0.00012975,2]
[346987832,1735455033778,-151.3722025,0.00012975,2]
[346987833,1735455033788,-594.84,0.00012975,2]
[346987834,1735455033797,-500.0,0.00012975,2]
[346987835,1735455033807,-500.0,0.00012975,2]
[346987836,1735455033816,-500.0,0.00012975,2]
[346987837,1735455033826,-509.02266745,0.00012975,2]
[346987838,1735455033836,-500.0,0.00012975,2]
[346987839,1735455033845,-500.0,0.00012975,2]
[346987840,1735455033855,-500.0,0.00012975,2]
[346987841,1735455033864,-612.12,0.00012975,2]
[346987842,1735455033874,-611.96174668,0.00012975,2]
[346987843,1735455033884,-500.0,0.00012975,2]
[346987844,1735455033893,-502.4279108,0.00012975,2]
[346987845,1735455033903,-500.0,0.00012975,2]
[346987846,1735455033912,-500.0,0.00012975,2]
[346987847,1735455033922,-502.63944482,0.00012975,2]
[346987848,1735455033932,-500.0,0.00012975,2]
[346987849,1735455033941,-500.0,0.00012975,2]
[346987850,1735455033954,-502.81228508,0.00012975,2]
[346987851,1735455033964,-500.0,0.00012975,2]
[346987852,1735455033975,-541.44,0.00012975,2]
[346987853,1735455033984,-500.0,0.00012975,2]
[346987854,1735455033994,-500.0,0.00012975,2]
[346987855,1735455034003,-500.0,0.00012975,2]
[346987856,1735455034013,-236.51915918,0.00012975,2]
[346987857,1735455034023,-154.49219226,0.00012975,2]
[346987858,1735455034032,-500.0,0.00012975,2]
[346987859,1735455034042,-500.0,0.00012975,2]
[346987860,1735455034051,-500.0,0.00012975,2]
[346987861,1735455034061,-500.0,0.00012975,2]
[346987862,1735455034070,-500.0,0.00012975,2]
[346987863,1735455034079,-500.0,0.00012975,2]
[346987864,1735455034089,-506.20402937,0.00012975,2]
[346987865,1735455034099,-500.0,0.00012975,2]
[346987866,1735455034108,-500.0,0.00012975,2]
[346987867,1735455034118,-500.0,0.00012975,2]
[346987868,1735455034127,-194.88168626,0.00012975,2]
[346987869,1735455034137,-515.17625077,0.00012975,2]
[346987870,1735455034147,-500.0,0.00012975,2]
[346987871,1735455034156,-500.0,0.00012975,2]
[346987872,1735455034166,-502.16032776,0.00012975,2]
[346987873,1735455034175,-1201.11,0.00012975,2]
[346987874,1735455034185,-280.60705342,0.00012975,2]
[346987875,1735455034194,-500.0,0.00012975,2]
[346987876,1735455034203,-767.21,0.00012975,2]
[346987877,1735455034212,-506.08717977,0.00012975,2]
[346987878,1735455034222,-500.0,0.00012975,2]
[346987879,1735455034231,-508.38368461,0.00012975,2]
[346987880,1735455034240,-500.0,0.00012975,2]
[346987881,1735455034249,-500.0,0.00012975,2]
[346987882,1735455034259,-2058.63,0.00012975,2]
[346987883,1735455034485,-427.56011116,0.00012975,2]
[346987884,1735455034495,-647.04949939,0.00012975,2]
[346987885,1735455034505,-2500.24,0.00012975,2]
[346987886,1735455034515,-350.60496248,0.00012975,2]
[346987887,1735455034524,-227.87523922,0.00012975,2]
[346987888,1735455034533,-500.0,0.00012975,2]
[346987889,1735455034542,-3205.8,0.00012975,2]
[346987890,1735455034554,-244.12928831,0.00012975,2]
[346987891,1735455034563,-454.68454164,0.00012975,2]
[346987892,1735455034572,-351.25264495,0.00012975,2]
[346987893,1735455034581,-500.0,0.00012975,2]
[346987894,1735455034590,-706.18,0.00012975,2]
[346987895,1735455034599,-500.0,0.00012975,2]
[346987896,1735455034608,-601.06555404,0.00012975,2]
[346987897,1735455034617,-500.0,0.00012975,2]
[346987898,1735455034627,-524.62795706,0.00012975,2]
[346987899,1735455034636,-595.24,0.00012975,2]
[346987900,1735455034645,-500.0,0.00012975,2]
[346987901,1735455034655,-500.0,0.00012975,2]
[346987902,1735455034664,-2334.23,0.00012975,2]
[346987903,1735455034673,-500.0,0.00012975,2]
[346987904,1735455034683,-500.0,0.00012975,2]
[346987905,1735455034691,-500.0,0.00012975,2]
[346987906,1735455034701,-500.0,0.00012976,2]
[346987907,1735455034710,-500.0,0.00012976,2]
[346987908,1735455034720,-500.0,0.00012976,2]
[346987909,1735455034729,-500.0,0.00012976,2]
[346987910,1735455034739,-669.31,0.00012976,2]
[346987911,1735455034748,-500.0,0.00012976,2]
[346987912,1735455034757,-1100.96,0.00012976,2]
[346987913,1735455034766,-363.25945306,0.00012976,2]
[346987914,1735455034776,-500.0,0.00012976,2]
[346987915,1735455034785,-500.0,0.00012976,2]
[346987916,1735455034794,-3269.89,0.00012976,2]
[346987917,1735455034803,-6701.78,0.00012976,2]
[346987918,1735455034813,-592.55,0.00012976,2]
[346987919,1735455034822,-502.00887132,0.00012976,2]
[346987920,1735455034831,-794.86,0.00012976,2]
[346987921,1735455034840,-1746.25,0.00012976,2]
[346987922,1735455034850,-511.27,0.00012976,2]
[346987923,1735455034859,-527.31350782,0.00012976,2]
[346987924,1735455034870,-500.0,0.00012976,2]
[346987925,1735455034879,-250.12279235,0.00012976,2]
[346987926,1735455034888,-500.0,0.00012976,2]
[346987927,1735455034898,-500.0,0.00012976,2]
[346987928,1735455034907,-508.30396277,0.00012976,2]
[346987929,1735455034916,-500.0,0.00012976,2]
[346987930,1735455034926,-500.0,0.00012976,2]
[346987931,1735455034935,-380.38,0.00012977,2]
[346987932,1735455034944,-3024.87,0.00012977,2]
[346987933,1735455034957,-500.0,0.00012977,2]
[346987934,1735455034967,-500.0,0.00012977,2]
[346987935,1735455034976,-500.0,0.00012977,2]
[346987936,1735455034986,-500.0,0.00012977,2]
[346987937,1735455034995,-530.56182737,0.00012977,2]
[346987938,1735455035006,-500.0,0.00012977,2]
[346987939,1735455035015,-500.0,0.00012977,2]
[346987940,1735455035024,-500.0,0.00012977,2]
[346987941,1735455035033,-500.0,0.00012977,2]
[346987942,1735455035042,-500.0,0.00012977,2]
[346987943,1735455035051,-500.0,0.00012977,2]
[346987944,1735455035061,-500.0,0.00012977,2]
[346987945,1735455035070,-900.018,0.00012978,2]
[346987946,1735455035079,-25000.0,0.00012989,2]
[346987947,1735455035089,-2018.041,0.00012991,2]
[346987948,1735455035098,-1269.626,0.00012991,2]
[346987949,1735455035108,-150.0,0.00012991,2]
[346987950,1735455035117,-565.0,0.00012991,2]
[346987951,1735455035126,-633.0,0.00012991,2]
[346987952,1735455035135,-1900.0,0.00012991,2]
[346987953,1735455035144,-3772.0,0.00012991,2]
[346987954,1735455035153,-819.0,0.00012991,2]
[346987955,1735455035162,-922.0,0.00012991,2]
[346987956,1735455035172,-1256.0,0.00012991,2]
[346987957,1735455035181,-536.0,0.00012991,2]
[346987958,1735455035191,-3685.0,0.00012991,2]
[346987959,1735455035200,-3888.0,0.00012991,2]
[346987960,1735455035210,-150.0,0.00012991,2]
[346987961,1735455035219,-877.684,0.00012991,2]
[346987962,1735455035229,-500.0,0.00012997,2]
[346987963,1735455035238,-3323.25,0.00012997,2]
[346987964,1735455035248,-508.03,0.00012997,2]
[346987965,1735455035257,-4936.42,0.00012997,2]
[346987966,1735455035267,-2074.69,0.00012997,2]
[346987967,1735455035277,-5057.15,0.00012997,2]
[346987968,1735455035286,-1627.3,0.00012997,2]
[346987969,1735455035295,-546.58,0.00012997,2]
[346987970,1735455035304,-3524.23,0.00012997,2]
[346987971,1735455035315,-500.0,0.00012997,2]
[346987972,1735455035324,-500.0,0.00012997,2]
[346987973,1735455035334,-505.29,0.00012997,2]
[346987974,1735455035343,-500.0,0.00012997,2]
[346987975,1735455035357,-537.09,0.00012997,2]
[346987976,1735455035367,-1292.56,0.00012998,2]
[346987977,1735455035377,-1153.68,0.00012998,2]
[346987978,1735455035386,-500.0,0.00012998,2]
[346987979,1735455035396,-500.0,0.00012998,2]
[346987980,1735455035405,-665.06,0.00012998,2]
[346987981,1735455035415,-500.0,0.00012998,2]
[346987982,1735455035424,-500.0,0.00012998,2]
[346987983,1735455035434,-500.0,0.00012998,2]
[346987984,1735455035444,-500.0,0.00012998,2]
[346987985,1735455035454,-500.0,0.00012998,2]
[346987986,1735455035464,-853.09,0.00012998,2]
[346987987,1735455035474,-705.94,0.00012998,2]
[346987988,1735455035484,-778.83,0.00012998,2]
[346987989,1735455035493,-772.08,0.00012998,2]
[346987990,1735455035503,-524.17,0.00012998,2]
[346987991,1735455035512,-500.0,0.00012998,2]
[346987992,1735455035521,-500.0,0.00012998,2]
[346987993,1735455035530,-500.0,0.00012998,2]
[346987994,1735455035539,-500.0,0.00012998,2]
[346987995,1735455035549,-500.0,0.00012998,2]
[346987996,1735455035558,-500.0,0.00012998,2]
[346987997,1735455035568,-646.42,0.00012998,2]
[346987998,1735455035577,-500.0,0.00012998,2]
[346987999,1735455035587,-500.0,0.00012998,2]
[346988000,1735455035596,-500.0,0.00012998,2]
[346988001,1735455035606,-500.0,0.00012998,2]
[346988002,1735455035615,-851.04,0.00012998,2]
[346988003,1735455035624,-526.16,0.00012998,2]
[346988004,1735455035634,-500.0,0.00012998,2]
[346988005,1735455035643,-500.0,0.00012998,2]
[346988006,1735455035652,-500.0,0.00012998,2]
[346988007,1735455035662,-500.0,0.00012998,2]
[346988008,1735455035671,-500.0,0.00012998,2]
[346988009,1735455035680,-500.0,0.00012998,2]
[346988010,1735455035690,-527.59354856,0.00012998,2]
[346988011,1735455035701,-500.0,0.00012998,2]
[346988012,1735455035712,-500.0,0.00012998,2]
[346988013,1735455035722,-500.0,0.00012998,2]
[346988014,1735455035731,-500.0,0.00012998,2]
[346988015,1735455035741,-500.0,0.00012998,2]
[346988016,1735455035750,-500.0,0.00012998,2]
[346988017,1735455035759,-500.0,0.00012998,2]
[346988018,1735455035769,-500.0,0.00012998,2]
[346988019,1735455035778,-500.0,0.00012998,2]
[346988020,1735455035788,-500.0,0.00012998,2]
[346988021,1735455035797,-500.0,0.00012998,2]
[346988022,1735455035807,-609.68,0.00012998,2]
[346988023,1735455035816,-500.0,0.00012998,2]
[346988024,1735455035826,-500.0,0.00012998,2]
[346988025,1735455035835,-500.0,0.00012998,2]
[346988026,1735455035845,-527.52,0.00012998,2]
[346988027,1735455035854,-500.0,0.00012998,2]
[346988028,1735455035864,-500.0,0.00012998,2]
[346988029,1735455035874,-825.46,0.00012998,2]
[346988030,1735455035883,-774.09,0.00012998,2]
[346988031,1735455035893,-500.0,0.00012998,2]
[346988032,1735455035902,-500.0,0.00012998,2]
[346988033,1735455035912,-500.0,0.00012998,2]
[346988034,1735455035921,-758.16,0.00012998,2]
[346988035,1735455035930,-500.0,0.00012998,2]
[346988036,1735455035940,-500.0,0.00012998,2]
[346988037,1735455035951,-500.0,0.00012998,2]
[346988038,1735455035962,-696.11,0.00012998,2]
[346988039,1735455035972,-500.0,0.00012998,2]
[346988040,1735455035981,-500.0,0.00012998,2]
[346988041,1735455035991,-222.38920794,0.00012998,2]
[346988042,1735455036000,-500.0,0.00012998,2]
[346988043,1735455036009,-500.0,0.00012998,2]
[346988044,1735455036019,-500.0,0.00012998,2]
[346988045,1735455036028,-500.0,0.00012998,2]
[346988046,1735455036037,-500.0,0.00012998,2]
[346988047,1735455036047,-500.0,0.00012998,2]
[346988048,1735455036056,-512.53,0.00012998,2]
[346988049,1735455036065,-693.73,0.00012998,2]
[346988050,1735455036075,-534.83,0.00012998,2]
[346988051,1735455036084,-500.0,0.00012998,2]
[346988052,1735455036094,-500.0,0.00012998,2]
[346988053,1735455036103,-500.0,0.00012998,2]
[346988054,1735455036112,-500.0,0.00012998,2]
[346988055,1735455036122,-676.66,0.00012998,2]
[346988056,1735455036131,-500.0,0.00012998,2]
[346988057,1735455036140,-500.0,0.00012998,2]
[346988058,1735455036150,-500.0,0.00012998,2]
[346988059,1735455036159,-500.0,0.00012998,2]
[346988060,1735455036168,-560.34,0.00012998,2]
[346988061,1735455036178,-800.28,0.00012998,2]
[346988062,1735455036187,-539.75388477,0.00012998,2]
[346988063,1735455036196,-540.8,0.00012998,2]
[346988064,1735455036206,-619.5,0.00012998,2]
[346988065,1735455036215,-500.0,0.00012998,2]
[346988066,1735455036226,-500.0,0.00012998,2]
[346988067,1735455036235,-500.0,0.00012998,2]
[346988068,1735455036244,-500.0,0.00012998,2]
[346988069,1735455036253,-500.0,0.00012998,2]
[346988070,1735455036262,-591.46,0.00012998,2]
[346988071,1735455036272,-500.0,0.00012998,2]
[346988072,1735455036281,-500.0,0.00012998,2]
[346988073,1735455036291,-502.50210942,0.00012998,2]
[346988074,1735455036300,-501.83697328,0.00012998,2]
[346988075,1735455036309,-501.92763185,0.00012998,2]
[346988076,1735455036319,-505.49873243,0.00012998,2]
[346988077,1735455036329,-500.0,0.00012998,2]
[346988078,1735455036338,-500.0,0.00012998,2]
[346988079,1735455036347,-500.0,0.00012998,2]
[346988080,1735455036356,-500.0,0.00012998,2]
[346988081,1735455036366,-500.0,0.00012998,2]
[346988082,1735455036375,-500.0,0.00012998,2]
[346988083,1735455036385,-500.0,0.00012998,2]
[346988084,1735455036394,-500.0,0.00012998,2]
[346988085,1735455036403,-500.0,0.00012998,2]
[346988086,1735455036413,-500.0,0.00012998,2]
[346988087,1735455036423,-500.0,0.00012998,2]
[346988088,1735455036432,-500.0,0.00012998,2]
[346988089,1735455036443,-500.0,0.00012998,2]
[346988090,1735455036452,-500.0,0.00012998,2]
[346988091,1735455036461,-500.0,0.00012998,2]
[346988092,1735455036472,-500.0,0.00012998,2]
[346988093,1735455036481,-500.0,0.00012998,2]
[346988094,1735455036490,-500.0,0.00012998,2]
[346988095,1735455036500,-500.0,0.00012998,2]